bitfinex/quotes_BTCUSD_20250908
["timestamp","ask_amount","ask_price","bid_price","bid_amount"]
[1757332450356,0.0004,112150.0,112140.0,2.26067269]
[1757332450591,0.0004,112150.0,112140.0,2.148913]
[1757332451009,0.0004,112150.0,112140.0,2.154013]
[1757332451246,0.0004,112150.0,112140.0,2.000613]
[1757332451462,0.0004,112150.0,112140.0,2.08024081]
[1757332451919,0.0004,112150.0,112140.0,2.19259081]
[1757332452126,0.0004,112150.0,112140.0,2.19559081]
[1757332452333,0.0004,112150.0,112140.0,2.19759081]
[1757332453260,0.0004,112160.0,112150.0,0.53927141]
[1757332453473,0.0004,112160.0,112150.0,1.4677795]
[1757332453678,0.0004,112160.0,112150.0,1.4728595]
[1757332454559,0.0004,112160.0,112150.0,1.16279523]
[1757332455482,0.0004,112160.0,112150.0,1.10113805]
[1757332456432,0.0004,112160.0,112150.0,1.50213805]
[1757332457892,0.0004,112160.0,112150.0,2.08376959]
[1757332458114,0.0004,112160.0,112150.0,2.33821959]
[1757332458567,0.0004,112160.0,112150.0,2.34331959]
[1757332459186,0.0004,112160.0,112150.0,2.35206959]
[1757332462844,0.0004,112160.0,112150.0,1.73362087]
[1757332463099,0.0004,112160.0,112150.0,2.35206959]
[1757332463293,0.0051,112170.0,112160.0,0.53925551]
[1757332463536,0.0051,112170.0,112160.0,1.66598022]
[1757332463727,0.0051,112170.0,112160.0,1.67104022]
[1757332463959,0.0051,112170.0,112160.0,2.07104022]
[1757332464659,0.0051,112170.0,112160.0,1.76181586]
[1757332466108,0.0051,112170.0,112160.0,1.76281586]
[1757332468022,0.0051,112170.0,112160.0,1.78958056]
[1757332470336,0.0051,112170.0,112160.0,1.79833056]
[1757332472374,0.0051,112170.0,112160.0,1.86198774]
[1757332473462,0.0004,112180.0,112170.0,0.30922436]
[1757332473669,0.0004,112180.0,112170.0,0.62238035]
[1757332473872,0.0004,112180.0,112170.0,0.80273114]
[1757332474077,0.0004,112180.0,112170.0,1.20273114]
[1757332474287,0.0004,112180.0,112170.0,1.24277302]
[1757332474632,0.0004,112180.0,112170.0,1.09997572]
[1757332474841,0.17868489,112180.0,112170.0,1.09997572]
[1757332475300,0.17868489,112180.0,112170.0,1.33641102]
[1757332475608,0.17968489,112180.0,112170.0,1.33641102]
[1757332476192,0.0014,112180.0,112170.0,1.33641102]
[1757332476396,0.0014,112180.0,112170.0,1.57836899]
[1757332477212,0.0014,112180.0,112170.0,1.4000682]
[1757332477417,0.0014,112180.0,112170.0,1.09084384]
[1757332477719,0.17968489,112180.0,112170.0,1.4000682]
[1757332478131,0.0014,112180.0,112170.0,1.57836899]
[1757332478330,0.0014,112180.0,112170.0,1.58137899]
[1757332481424,0.0014,112180.0,112170.0,1.59012899]
[1757332481883,0.0014,112180.0,112170.0,2.11339335]
[1757332482101,0.0014,112180.0,112170.0,2.10464335]
[1757332485191,0.0014,112180.0,112170.0,1.48619463]
[1757332485381,0.0014,112180.0,112170.0,2.10464335]
[1757332486427,0.0014,112180.0,112170.0,2.04098617]
[1757332487143,0.0014,112180.0,112170.0,2.04973617]
[1757332487552,0.0014,112180.0,112170.0,2.04672617]
[1757332487964,0.0014,112180.0,112170.0,1.27551745]
[1757332488170,0.00336,112180.0,112170.0,1.73690181]
[1757332488386,0.00654,112180.0,112170.0,1.81652962]
[1757332488581,0.0014,112180.0,112170.0,1.81652962]
[1757332489020,0.0014,112180.0,112170.0,1.81953962]
[1757332491047,0.0014,112180.0,112170.0,1.81652962]
[1757332491248,0.18479489,112180.0,112170.0,1.63613883]
[1757332491882,0.18479489,112180.0,112170.0,1.63815883]
[1757332492201,0.17968489,112180.0,112170.0,1.63815883]
[1757332492404,0.0014,112180.0,112170.0,2.12872398]
[1757332493059,0.0014,112180.0,112170.0,1.86552398]
[1757332498983,0.0014,112180.0,112170.0,2.12872398]
[1757332500988,0.0014,112180.0,112170.0,1.51027526]
[1757332501219,0.0014,112180.0,112170.0,1.63787883]
[1757332501464,0.0014,112180.0,112170.0,1.81921962]
[1757332502627,0.0014,112180.0,112170.0,1.50999526]
[1757332502795,0.0014,112180.0,112170.0,1.81921962]
[1757332503030,0.0014,112180.0,112170.0,1.81046962]
[1757332503376,0.0014,112180.0,112170.0,1.73084181]
[1757332503845,0.0014,112180.0,112170.0,1.74870181]
[1757332504130,0.0014,112180.0,112170.0,1.73084181]
[1757332504357,0.0014,112180.0,112170.0,2.04006617]
[1757332505456,0.0014,112180.0,112170.0,2.04106617]
[1757332505655,0.0004,112180.0,112170.0,2.04106617]
[1757332505957,0.0004,112180.0,112170.0,2.04006617]
[1757332507807,0.0004,112180.0,112170.0,2.06683118]
[1757332508231,0.0004,112180.0,112170.0,2.07658118]
[1757332510551,0.0004,112180.0,112170.0,1.92474118]
[1757332510770,0.0004,112180.0,112170.0,2.07638118]
[1757332510996,0.0004,112180.0,112170.0,1.45793246]
[1757332511232,0.0004,112180.0,112170.0,2.07638118]
[1757332513151,0.0004,112180.0,112170.0,1.45489246]
[1757332513382,0.0004,112180.0,112170.0,2.07638118]
[1757332513835,0.0004,112180.0,112170.0,2.07120118]
[1757332514075,7.981e-05,112180.0,112170.0,2.07322118]
[1757332514518,7.981e-05,112180.0,112170.0,2.07608504]
[1757332514961,0.00012758,112180.0,112170.0,2.07608504]
[1757332521375,0.00012758,112180.0,112170.0,2.04932003]
[1757332523963,2.547e-05,112180.0,112170.0,2.04932003]
[1757332524661,2.547e-05,112180.0,112170.0,2.04057003]
[1757332526031,2.547e-05,112180.0,112170.0,2.04021003]
[1757332529583,2.547e-05,112180.0,112170.0,2.04896003]
[1757332530293,2.547e-05,112180.0,112170.0,1.43068745]
[1757332530472,2.547e-05,112180.0,112170.0,2.04896003]
[1757332531920,0.17793972,112190.0,112180.0,0.61827258]
[1757332532148,0.17793972,112190.0,112180.0,0.94137262]
[1757332532337,0.17793972,112190.0,112180.0,0.94333262]
[1757332532572,0.17793972,112190.0,112180.0,1.34333262]
[1757332533416,0.17893972,112190.0,112180.0,1.34333262]
[1757332536484,0.18401972,112190.0,112180.0,1.19029262]
[1757332536622,0.18401972,112190.0,112180.0,1.34121262]
[1757332537126,0.18401972,112190.0,112180.0,1.19029262]
[1757332537316,0.18401972,112190.0,112180.0,1.34121262]
[1757332539646,0.18401972,112190.0,112180.0,1.40969262]
[1757332540200,0.18401972,112190.0,112180.0,0.24050004]
[1757332540499,0.49315601,112190.0,112180.0,0.06848]
[1757332540694,0.51606601,112190.0,112180.0,0.28338213]
[1757332540928,0.54283532,112190.0,112180.0,0.28338213]
[1757332541131,0.54283532,112190.0,112180.0,0.21932]
[1757332544236,0.54283532,112190.0,112180.0,0.23718]
[1757332544453,0.54283532,112190.0,112180.0,0.21932]
[1757332549871,0.23369903,112190.0,112180.0,0.21932]
[1757332550077,0.54283532,112190.0,112180.0,0.21932]
[1757332552879,0.54283532,112190.0,112180.0,0.21916]
[1757332560001,0.23369903,112190.0,112180.0,0.21916]
[1757332560219,0.54283532,112190.0,112180.0,0.21916]
[1757332566484,0.54283532,112190.0,112180.0,0.06848]
[1757332566704,0.54283532,112190.0,112180.0,0.21904]
[1757332567256,0.51828489,112180.0,112170.0,0.13254213]
[1757332567456,0.51828489,112180.0,112170.0,0.219]
[1757332567457,1.17513498,112180.0,112170.0,0.219]
[1757332568263,1.20190844,112180.0,112170.0,0.219]
[1757332568618,1.20290844,112180.0,112170.0,0.219]
[1757332570827,1.20390844,112180.0,112170.0,0.219]
[1757332575229,1.19487093,112180.0,112170.0,0.219]
[1757332575426,0.88573464,112180.0,112170.0,0.219]
[1757332576450,0.88591274,112180.0,112170.0,0.219]
[1757332593624,0.57659835,112180.0,112170.0,0.219]
[1757332593856,0.88591274,112180.0,112170.0,0.219]
[1757332602156,0.57659835,112180.0,112170.0,0.219]
[1757332602366,0.88591274,112180.0,112170.0,0.219]
[1757332604630,0.87865874,112180.0,112170.0,0.219]
[1757332604849,0.87865874,112180.0,112170.0,0.06848]
[1757332605059,0.87865874,112180.0,112170.0,0.14984001]
[1757332607209,0.87865874,112180.0,112170.0,0.14984]
[1757332609048,0.56934435,112180.0,112170.0,0.14984]
[1757332609265,0.87865874,112180.0,112170.0,0.14984]
[1757332610068,0.56934435,112180.0,112170.0,0.14984]
[1757332610268,0.87865874,112180.0,112170.0,0.14984]
[1757332616743,0.56934435,112180.0,112170.0,0.14984]
[1757332616888,0.87865874,112180.0,112170.0,0.14984]
[1757332620640,0.17831669,112160.0,112150.0,0.20320054]
[1757332620835,0.18110288,112160.0,112150.0,0.44495653]
[1757332621044,0.18629288,112160.0,112150.0,0.44495653]
[1757332621261,0.21028192,112160.0,112150.0,0.44495653]
[1757332621989,0.21028192,112160.0,112150.0,0.44695653]
[1757332622445,0.21028192,112160.0,112150.0,0.37534441]
[1757332622650,0.21028192,112160.0,112150.0,0.37434441]
[1757332625237,0.21028192,112160.0,112150.0,0.28242842]
[1757332643120,0.21028192,112160.0,112150.0,0.28224418]
[1757332656938,0.51964222,112160.0,112150.0,0.28224418]
[1757332662911,0.21028192,112160.0,112150.0,0.28224418]
[1757332665946,0.51964222,112160.0,112150.0,0.28224418]
[1757332669170,0.21028192,112160.0,112150.0,0.59160448]
[1757332671846,0.21028192,112160.0,112150.0,0.28224418]
[1757332674537,0.21028192,112160.0,112150.0,0.28224418]
[1757332675123,0.21028192,112160.0,112150.0,0.59160448]
[1757332677825,0.21028192,112160.0,112150.0,0.28224418]
[1757332678062,0.21028192,112160.0,112150.0,0.59160448]
[1757332681415,0.20871112,112160.0,112150.0,0.59160448]
[1757332692008,0.20871112,112160.0,112150.0,0.28224418]
[1757332697406,0.20871112,112160.0,112150.0,0.28439418]
[1757332697897,0.20871112,112160.0,112150.0,0.59160448]
[1757332698576,0.20871112,112160.0,112150.0,0.59158998]
[1757332701481,0.21071112,112160.0,112150.0,0.59158998]
[1757332704791,0.21071112,112160.0,112150.0,0.28224418]
[1757332705118,0.21071112,112160.0,112150.0,0.59158998]
[1757332705948,0.21071112,112160.0,112150.0,0.28224418]
[1757332706091,0.21071112,112160.0,112150.0,0.59158998]
[1757332709531,0.21071112,112160.0,112150.0,0.59357998]
[1757332709731,0.20763112,112160.0,112150.0,0.59357998]
[1757332710416,0.21065112,112160.0,112150.0,0.59357998]
[1757332715917,0.21065112,112160.0,112150.0,0.28423418]
[1757332716122,0.21065112,112160.0,112150.0,0.59357998]
[1757332716458,0.21065112,112160.0,112150.0,0.28423418]
[1757332716754,0.21065112,112160.0,112150.0,0.59357998]
[1757332719135,0.21065112,112160.0,112150.0,0.59158998]
[1757332721209,0.21065112,112160.0,112150.0,0.28224418]
[1757332721411,0.21065112,112160.0,112150.0,0.59158998]
[1757332731178,0.21065112,112160.0,112150.0,0.60943998]
[1757332731376,0.21065112,112160.0,112150.0,0.59158998]
[1757332736635,0.21065112,112160.0,112150.0,0.28224418]
[1757332736817,0.21065112,112160.0,112150.0,0.59158998]
[1757332739081,0.21065112,112160.0,112150.0,0.59130998]
[1757332740226,0.21065112,112160.0,112150.0,0.28196418]
[1757332740405,0.21065112,112160.0,112150.0,0.59130998]
[1757332748032,0.21065112,112160.0,112150.0,0.59341998]
[1757332755550,0.20552112,112160.0,112150.0,0.68832597]
[1757332755754,0.20552112,112160.0,112150.0,0.68533597]
[1757332756110,0.17834849,112140.0,112130.0,0.18027969]
[1757332756314,0.18636518,112140.0,112130.0,0.0685663]
[1757332756518,0.18357849,112140.0,112130.0,0.2180463]
[1757332756818,0.219083,112140.0,112130.0,0.2180463]
[1757332757531,0.219083,112140.0,112130.0,0.2190463]
[1757332759015,0.21035929,112140.0,112130.0,0.2190463]
[1757332759232,0.55035929,112140.0,112130.0,0.0695663]
[1757332759438,0.85970509,112140.0,112130.0,0.2190463]
[1757332759625,0.55035929,112140.0,112130.0,0.2190463]
[1757332759835,0.55923145,112140.0,112130.0,0.1505263]
[1757332760480,0.86876049,112140.0,112130.0,0.1505263]
[1757332760683,0.86876049,112140.0,112130.0,0.1495263]
[1757332761327,0.86976049,112140.0,112130.0,0.1495263]
[1757332761910,0.86976049,112140.0,112130.0,4.63e-05]
[1757332762070,0.86976049,112140.0,112130.0,0.1495263]
[1757332768209,0.56023145,112140.0,112130.0,0.1495263]
[1757332772830,0.86976049,112140.0,112130.0,0.1495263]
[1757332773885,0.56023145,112140.0,112130.0,0.1495263]
[1757332774088,0.55135929,112140.0,112130.0,0.45905534]
[1757332774409,0.55135929,112140.0,112130.0,0.46114534]
[1757332775125,0.55135929,112140.0,112130.0,0.45905534]
[1757332775281,0.55135929,112140.0,112130.0,0.30957534]
[1757332775481,0.55135929,112140.0,112130.0,0.45901534]
[1757332779124,0.55135929,112140.0,112130.0,0.46110534]
[1757332779327,0.54612929,112140.0,112130.0,0.86551037]
[1757332779496,0.54612929,112140.0,112130.0,0.55598133]
[1757332779740,0.54612929,112140.0,112130.0,0.55302133]
[1757332780983,0.54612929,112140.0,112130.0,0.40358133]
[1757332781187,0.54612929,112140.0,112130.0,0.55302133]
[1757332781698,0.54612929,112140.0,112130.0,0.40348133]
[1757332782002,0.54821929,112140.0,112130.0,0.55292133]
[1757332782560,0.55143929,112140.0,112130.0,0.55292133]
[1757332782961,0.55143929,112140.0,112130.0,0.24339229]
[1757332783170,0.55143929,112140.0,112130.0,0.55292133]
[1757332783556,0.55139479,112140.0,112130.0,0.55292133]
[1757332787807,0.55139479,112140.0,112130.0,0.55288133]
[1757332788767,0.55139479,112140.0,112130.0,0.24335229]
[1757332788983,0.55139479,112140.0,112130.0,0.55288133]
[1757332789388,0.55139479,112140.0,112130.0,0.40348133]
[1757332789663,0.55139479,112140.0,112130.0,0.55288133]
[1757332790453,0.55139479,112140.0,112130.0,0.40348133]
[1757332790672,0.55139479,112140.0,112130.0,0.55288133]
[1757332791110,0.55139479,112140.0,112130.0,0.40348133]
[1757332791290,0.55139479,112140.0,112130.0,0.55288133]
[1757332792462,0.54608479,112140.0,112130.0,0.40348133]
[1757332792670,0.54608479,112140.0,112130.0,0.55288133]
[1757332792942,0.54608479,112140.0,112130.0,0.40348133]
[1757332793141,0.55116479,112140.0,112130.0,0.24335229]
[1757332793345,0.55116479,112140.0,112130.0,0.55288133]
[1757332793542,0.55116479,112140.0,112130.0,0.24331229]
[1757332793794,0.55116479,112140.0,112130.0,0.55295503]
[1757332795849,0.55116479,112140.0,112130.0,0.24342599]
[1757332796064,0.55116479,112140.0,112130.0,0.55295503]
[1757332797219,0.54820479,112140.0,112130.0,0.55295503]
[1757332797564,0.54608479,112140.0,112130.0,0.55295503]
[1757332798801,0.54608479,112140.0,112130.0,0.40359503]
[1757332799017,0.54608479,112140.0,112130.0,0.31167904]
[1757332799202,0.54608479,112140.0,112130.0,0.46103904]
[1757332801167,0.20608479,112140.0,112130.0,0.86556407]
[1757332801633,0.20608479,112140.0,112130.0,0.77999653]
[1757332801842,0.20608479,112140.0,112130.0,0.92935653]
[1757332803473,0.20608479,112140.0,112130.0,0.31029845]
[1757332803670,0.20608479,112140.0,112130.0,0.92935653]
[1757332804983,0.17930399,112140.0,112130.0,0.92931653]
[1757332805193,0.69465977,112170.0,112140.0,0.39]
[1757332805194,0.48786857,112170.0,112140.0,0.39]
[1757332805434,0.17833259,112150.0,112140.0,0.79144503]
[1757332805641,0.20511028,112150.0,112140.0,0.86211503]
[1757332805846,0.17833259,112150.0,112140.0,1.03821188]
[1757332806026,0.17833259,112150.0,112140.0,0.99129188]
[1757332806388,0.17833259,112150.0,112140.0,1.04129188]
[1757332806588,0.17833259,112150.0,112140.0,1.30082092]
[1757332806797,0.17833259,112150.0,112140.0,1.35082092]
[1757332808219,0.17933259,112150.0,112140.0,1.32404407]
[1757332809250,0.17041517,112150.0,112140.0,1.32404407]
[1757332810987,0.17253517,112150.0,112140.0,0.78164407]
[1757332811187,0.17834849,112140.0,112130.0,0.06852]
[1757332811419,0.1783803,112120.0,112110.0,0.38112904]
[1757332811550,0.1834603,112120.0,112110.0,0.62139503]
[1757332811774,0.1834603,112120.0,112110.0,0.61924503]
[1757332812178,0.1834603,112120.0,112110.0,0.62139503]
[1757332812422,0.1805003,112120.0,112110.0,0.62139503]
[1757332812786,0.1805003,112120.0,112110.0,0.62447503]
[1757332813212,0.1805003,112120.0,112110.0,0.62547503]
[1757332813414,0.1783803,112120.0,112110.0,0.62547503]
[1757332815530,0.1805003,112120.0,112110.0,0.31286599]
[1757332815727,0.1805003,112120.0,112110.0,0.62239503]
[1757332815927,0.1805003,112120.0,112110.0,0.62547503]
[1757332816689,0.1834603,112120.0,112110.0,0.62239503]
[1757332816887,0.1834603,112120.0,112110.0,0.62024503]
[1757332817368,0.1834603,112120.0,112110.0,0.62239503]
[1757332817369,0.1805003,112120.0,112110.0,0.62239503]
[1757332817772,0.1805003,112120.0,112110.0,0.62547503]
[1757332818192,0.1783803,112120.0,112110.0,0.62547503]
[1757332818399,0.1783803,112120.0,112110.0,0.93500407]
[1757332820464,0.1783803,112120.0,112110.0,0.93490719]
[1757332825709,0.1783803,112120.0,112110.0,1.33490719]
[1757332828101,0.1783803,112120.0,112110.0,0.97914599]
[1757332828432,0.1783803,112120.0,112110.0,1.59810719]
[1757332828765,0.1783803,112120.0,112110.0,2.1165034]
[1757332829178,0.1783803,112120.0,112110.0,2.18029586]
[1757332829637,0.1783803,112120.0,112110.0,2.20517586]
[1757332830037,0.1783803,112120.0,112110.0,1.58621466]
[1757332830323,0.1783803,112120.0,112110.0,2.20517586]
[1757332831138,0.1783803,112120.0,112110.0,2.02677965]
[1757332831450,0.1783803,112120.0,112110.0,2.20517586]
[1757332831844,0.1783803,112120.0,112110.0,2.02677965]
[1757332832202,0.1783803,112120.0,112110.0,2.20517586]
[1757332832398,0.1783803,112120.0,112110.0,2.02677965]
[1757332834060,0.1783803,112120.0,112110.0,2.00189965]
[1757332834260,0.1783803,112120.0,112110.0,2.18029586]
[1757332835724,0.17837882,112130.0,112120.0,0.5183803]
[1757332835939,0.17837882,112130.0,112120.0,1.47028647]
[1757332836144,0.17837882,112130.0,112120.0,0.98455557]
[1757332836353,0.17837882,112130.0,112120.0,1.38455557]
[1757332836568,0.17837882,112130.0,112120.0,1.05019497]
[1757332836778,0.17837882,112130.0,112120.0,1.29582659]
[1757332838888,0.48785942,112130.0,112120.0,0.98634599]
[1757332839510,0.48785942,112130.0,112120.0,1.05019497]
[1757332840262,0.48785942,112130.0,112120.0,1.31339497]
[1757332842406,0.4878997,112130.0,112120.0,0.97339497]
[1757332843052,0.4878997,112130.0,112120.0,0.97439497]
[1757332844577,0.17837882,112130.0,112120.0,0.97439497]
[1757332844758,0.4878997,112130.0,112120.0,0.97439497]
[1757332851653,0.17837882,112130.0,112120.0,0.97439497]
[1757332851827,0.4878997,112130.0,112120.0,0.71119497]
[1757332856220,0.4878997,112130.0,112120.0,0.71115497]
[1757332858742,0.17837882,112130.0,112120.0,0.71115497]
[1757332860849,0.17837882,112130.0,112120.0,0.71990497]
[1757332862177,0.17837882,112130.0,112120.0,0.65605599]
[1757332868189,0.17837882,112130.0,112120.0,0.64730599]
[1757332868536,0.17837882,112130.0,112120.0,0.66515599]
[1757332868775,0.17837882,112130.0,112120.0,0.64730599]
[1757332868990,0.17837882,112130.0,112120.0,0.67408366]
[1757332870725,0.4878997,112130.0,112120.0,0.67408366]
[1757332873181,0.4878997,112130.0,112120.0,0.68283366]
[1757332876413,0.17837882,112130.0,112120.0,0.68283366]
[1757332876605,0.4878997,112130.0,112120.0,0.68283366]
[1757332878598,0.4878997,112130.0,112120.0,0.67408366]
[1757332879043,0.17837882,112130.0,112120.0,0.67408366]
[1757332880213,0.17837882,112130.0,112120.0,0.74260366]
[1757332880436,0.48787172,112130.0,112120.0,0.74260366]
[1757332882399,0.17837882,112130.0,112120.0,0.74260366]
[1757332882607,0.48787172,112130.0,112120.0,0.74260366]
[1757332883720,0.48787172,112130.0,112120.0,0.75135366]
[1757332885034,0.48787172,112130.0,112120.0,0.60211366]
[1757332885234,0.48787172,112130.0,112120.0,0.75127366]
[1757332888564,0.17837882,112130.0,112120.0,0.74252366]
[1757332888680,0.48787172,112130.0,112120.0,0.74252366]
[1757332888884,0.17837882,112130.0,112120.0,0.74252366]
[1757332889142,0.48787172,112130.0,112120.0,0.74252366]
[1757332890193,0.48787172,112130.0,112120.0,0.60211366]
[1757332890379,0.48787172,112130.0,112120.0,0.75127366]
[1757332890832,0.48992172,112130.0,112120.0,0.75127366]
[1757332891061,0.48992172,112130.0,112120.0,0.72449599]
[1757332891270,0.48992172,112130.0,112120.0,0.32449599]
[1757332891687,0.48787172,112130.0,112120.0,0.72449599]
[1757332893055,0.17837882,112130.0,112120.0,0.72449599]
[1757332893469,0.48787172,112130.0,112120.0,0.72449599]
[1757332894745,0.48787172,112130.0,112120.0,0.32449599]
[1757332895159,0.48787172,112130.0,112120.0,0.72449599]
[1757332898184,0.48787172,112130.0,112120.0,0.32449599]
[1757332898674,0.48787172,112130.0,112120.0,0.72449599]
[1757332900174,0.17837882,112130.0,112120.0,0.72449599]
[1757332901687,0.17837882,112130.0,112120.0,0.32449599]
[1757332902282,0.17837882,112130.0,112120.0,0.72449599]
[1757332902494,0.48787172,112130.0,112120.0,0.72449599]
[1757332903756,0.17837882,112130.0,112120.0,0.72449599]
[1757332903946,0.48787172,112130.0,112120.0,0.72449599]
[1757332905381,0.48787172,112130.0,112120.0,0.32449599]
[1757332905917,0.48787172,112130.0,112120.0,0.72449599]
[1757332906573,0.17837882,112130.0,112120.0,0.72449599]
[1757332906841,0.48787172,112130.0,112120.0,0.72449599]
[1757332908661,0.17837882,112130.0,112120.0,0.71574599]
[1757332908869,0.48787172,112130.0,112120.0,0.31574599]
[1757332909103,0.17837882,112130.0,112120.0,0.31574599]
[1757332909312,0.48787172,112130.0,112120.0,0.31574599]
[1757332909490,0.48787172,112130.0,112120.0,0.71574599]
[1757332909691,0.17837882,112130.0,112120.0,0.71574599]
[1757332910120,0.48787172,112130.0,112120.0,0.71574599]
[1757332912066,0.17837882,112130.0,112120.0,0.71574599]
[1757332912275,0.17837882,112130.0,112120.0,0.31574599]
[1757332912916,0.17837882,112130.0,112120.0,0.71574599]
[1757332913135,0.48787172,112130.0,112120.0,0.71574599]
[1757332914707,0.18726591,112140.0,112120.0,0.79585004]
[1757332914918,0.18726591,112140.0,112130.0,0.3081302]
[1757332915128,0.49675881,112140.0,112130.0,0.3081302]
[1757332915342,0.49675881,112140.0,112130.0,0.3102502]
[1757332916700,0.49675881,112140.0,112130.0,0.7102502]
[1757332917144,0.18726591,112140.0,112130.0,0.7102502]
[1757332917382,0.49675881,112140.0,112130.0,0.7102502]
[1757332918878,0.49675881,112140.0,112130.0,0.5611702]
[1757332919083,0.80625171,112140.0,112130.0,0.7102502]
[1757332919700,0.49675881,112140.0,112130.0,0.3102502]
[1757332920199,0.49675881,112140.0,112130.0,0.9734502]
[1757332923360,0.80625171,112140.0,112130.0,0.9734502]
[1757332923621,0.18726591,112140.0,112130.0,0.9734502]
[1757332923865,0.80625171,112140.0,112130.0,0.9734502]
[1757332925003,0.80625171,112140.0,112130.0,0.9822002]
[1757332925236,0.49675881,112140.0,112130.0,0.9822002]
[1757332926923,0.49675881,112140.0,112130.0,0.9832002]
[1757332927658,0.17834849,112140.0,112130.0,1.3232002]
[1757332927863,0.17834849,112140.0,112130.0,1.28590055]
[1757332928067,0.48784139,112140.0,112130.0,1.28590055]
[1757332932202,0.17834849,112140.0,112130.0,1.28590055]
[1757332932410,0.48784139,112140.0,112130.0,1.28590055]
[1757332932617,0.17834849,112140.0,112130.0,1.28590055]
[1757332936353,0.48784139,112140.0,112130.0,1.13682055]
[1757332936487,0.48784139,112140.0,112130.0,1.28590055]
[1757332938215,0.17834849,112140.0,112130.0,1.28590055]
[1757332938417,0.48784139,112140.0,112130.0,1.28590055]
[1757332939033,0.17834849,112140.0,112130.0,1.28590055]
[1757332939240,0.79733429,112140.0,112130.0,1.28590055]
[1757332939647,0.17834849,112140.0,112130.0,1.28590055]
[1757332939830,0.48784139,112140.0,112130.0,1.28590055]
[1757332940386,0.17834849,112140.0,112130.0,1.28590055]
[1757332940593,0.79733429,112140.0,112130.0,1.28590055]
[1757332940811,0.79733429,112140.0,112130.0,1.27715055]
[1757332941199,0.48784139,112140.0,112130.0,1.27715055]
[1757332941327,0.79733429,112140.0,112130.0,1.27715055]
[1757332941529,0.48784139,112140.0,112130.0,1.27715055]
[1757332942514,0.48780995,112140.0,112130.0,1.27715055]
[1757332942857,0.48780995,112140.0,112130.0,1.12807055]
[1757332943080,0.48780995,112140.0,112130.0,1.27715055]
[1757332946193,0.48780995,112140.0,112130.0,1.28590055]
[1757332948405,0.48780995,112140.0,112130.0,1.13682055]
[1757332948618,0.48984995,112140.0,112130.0,1.28586055]
[1757332949028,0.48780995,112140.0,112130.0,1.28586055]
[1757332949239,0.80233141,112140.0,112130.0,0.85561781]
[1757332949448,0.80233141,112140.0,112130.0,1.00465781]
[1757332949895,0.80233141,112140.0,112130.0,0.74145781]
[1757332950102,0.80233141,112140.0,112130.0,0.71468325]
[1757332950744,0.80233141,112140.0,112130.0,0.70593325]
[1757332953020,0.80233141,112140.0,112130.0,0.30593325]
[1757332953540,0.80233141,112140.0,112130.0,0.70593325]
[1757332955256,0.80233141,112140.0,112130.0,0.55689325]
[1757332955465,0.80233141,112140.0,112130.0,0.70593325]
[1757332955601,0.82910798,112140.0,112130.0,0.70593325]
[1757332956521,0.82910798,112140.0,112130.0,0.30593325]
[1757332956967,0.82910798,112140.0,112130.0,0.70593325]
[1757332959129,0.82910798,112140.0,112130.0,0.64195599]
[1757332960167,0.82910798,112140.0,112130.0,0.24195599]
[1757332960528,0.82910798,112140.0,112130.0,0.24400599]
[1757332960738,0.82910798,112140.0,112130.0,0.64400599]
[1757332962868,0.51964652,112140.0,112130.0,0.64400599]
[1757332963082,0.20716506,112140.0,112130.0,0.64400599]
[1757332963295,0.51662652,112140.0,112130.0,0.64695599]
[1757332963610,0.51662652,112140.0,112130.0,0.24695599]
[1757332964179,0.51662652,112140.0,112130.0,0.64695599]
[1757332965248,0.51458652,112140.0,112130.0,0.71093325]
[1757332967239,0.51458652,112140.0,112130.0,0.31093325]
[1757332967582,0.51458652,112140.0,112130.0,0.71093325]
[1757332968325,0.51458652,112140.0,112130.0,0.31093325]
[1757332968735,0.51458652,112140.0,112130.0,0.71093325]
[1757332971779,0.51458652,112140.0,112130.0,0.31093325]
[1757332972279,0.20512506,112140.0,112130.0,0.31093325]
[1757332972478,0.51458652,112140.0,112130.0,0.31093325]
[1757332973109,0.20512506,112140.0,112130.0,0.31093325]
[1757332973305,0.51458652,112140.0,112130.0,0.31093325]
[1757332975833,0.51458652,112140.0,112130.0,0.71093325]
[1757332977593,0.20512506,112140.0,112130.0,0.71093325]
[1757332977788,0.51458652,112140.0,112130.0,0.71093325]
[1757332978999,0.51458652,112140.0,112130.0,0.31093325]
[1757332979742,0.51458652,112140.0,112130.0,0.71093325]
[1757332979962,0.20512506,112140.0,112130.0,0.71093325]
[1757332980161,0.51458652,112140.0,112130.0,0.71093325]
[1757332982516,0.51458652,112140.0,112130.0,0.31093325]
[1757332982745,0.51657652,112140.0,112130.0,0.15894325]
[1757332982912,0.51975652,112140.0,112130.0,0.30593325]
[1757332983695,0.51975652,112140.0,112130.0,0.32378325]
[1757332983899,0.51975652,112140.0,112130.0,0.30593325]
[1757332985329,0.82921798,112140.0,112130.0,0.30593325]
[1757332988015,0.51975652,112140.0,112130.0,0.30593325]
[1757332988847,0.21029506,112140.0,112130.0,0.30593325]
[1757332989051,0.51975652,112140.0,112130.0,0.30593325]
[1757332990302,0.21029506,112140.0,112130.0,0.70593325]
[1757332990514,0.51975652,112140.0,112130.0,0.70593325]
[1757332991381,0.51975652,112140.0,112130.0,0.70791325]
[1757332992239,0.51975652,112140.0,112130.0,0.30791325]
[1757332992857,0.51975652,112140.0,112130.0,0.70791325]
[1757332995523,0.51657652,112140.0,112130.0,0.71097325]
[1757332995735,0.51657652,112140.0,112130.0,0.30791325]
[1757332995919,0.51975652,112140.0,112130.0,0.30791325]
[1757332996225,0.51975652,112140.0,112130.0,0.70791325]
[1757332999270,0.51975652,112140.0,112130.0,0.30791325]
[1757332999775,0.51975652,112140.0,112130.0,0.70791325]
[1757333000386,0.21029506,112140.0,112130.0,0.70791325]
[1757333000568,0.51975652,112140.0,112130.0,0.70791325]
[1757333000725,0.51975652,112140.0,112130.0,0.30791325]
[1757333001742,0.51975652,112140.0,112130.0,0.37643325]
[1757333002404,0.8293021,112140.0,112130.0,0.37643325]
[1757333005148,0.8293021,112140.0,112130.0,0.37445325]
[1757333005540,0.8293021,112140.0,112130.0,0.77445325]
[1757333007273,0.8293021,112140.0,112130.0,0.22541325]
[1757333007757,1.13880562,112140.0,112130.0,0.16143599]
[1757333007982,1.13880562,112140.0,112130.0,0.31047599]
[1757333008220,0.8293021,112140.0,112130.0,0.31047599]
[1757333009952,1.13880562,112140.0,112130.0,0.31047599]
[1757333010176,0.8293021,112140.0,112130.0,0.31047599]
[1757333012596,0.21029506,112140.0,112130.0,0.31047599]
[1757333012796,0.8293021,112140.0,112130.0,0.31047599]
[1757333023232,0.21029506,112140.0,112130.0,0.31047599]
[1757333023443,0.8293021,112140.0,112130.0,0.31047599]
[1757333023652,0.8293021,112140.0,112130.0,0.16143599]
[1757333023832,0.8293021,112140.0,112130.0,0.31047599]
[1757333024991,1.13880562,112140.0,112130.0,0.06952]
[1757333025896,0.80263734,112120.0,112110.0,0.86615811]
[1757333026075,0.80263734,112120.0,112110.0,0.79554599]